bitfinex-derivatives/quotes_ETHF0:USTF0_20250905
["timestamp","ask_amount","ask_price","bid_price","bid_amount"]
[1757088235337,0.246,4277.8,4277.2,0.9463]
[1757088235641,3.2078,4277.3,4277.2,2.1755]
[1757088236035,3.2078,4277.3,4277.2,1.5447]
[1757088236435,3.2078,4277.3,4277.2,0.9463]
[1757088236932,3.2078,4277.3,4277.2,1.5447]
[1757088237741,3.2078,4277.3,4277.2,0.9463]
[1757088238139,7.6876,4277.3,4276.5,0.3619]
[1757088238338,3.2078,4276.6,4276.5,1.3082]
[1757088239837,3.2078,4276.6,4276.1,0.9463]
[1757088240141,3.2078,4276.6,4276.5,0.3543]
[1757088240333,3.2078,4276.6,4276.5,2.5298]
[1757088242634,3.2078,4276.6,4276.5,6.76362999]
[1757088242837,3.2078,4277.1,4277.0,2.5298]
[1757088243044,3.2078,4277.1,4277.0,2.7758]
[1757088243939,4.4458,4277.1,4277.0,2.5298]
[1757088244248,0.5927,4276.7,4276.6,2.4215]
[1757088244741,3.8005,4277.1,4277.0,1.5835]
[1757088245044,3.8005,4277.1,4277.0,2.5298]
[1757088245840,0.9207,4277.0,4276.7,0.9463]
[1757088246034,1.238,4276.8,4276.7,2.1755]
[1757088246546,2.1587,4276.8,4276.7,2.1755]
[1757088246744,2.1587,4276.8,4276.7,1.5447]
[1757088246942,2.15787994,4276.8,4276.7,1.5447]
[1757088247250,1.238,4277.3,4277.2,1.2292]
[1757088247449,1.238,4277.3,4276.6,0.246]
[1757088247450,0.9207,4277.2,4276.6,0.246]
[1757088247638,2.1587,4276.7,4276.6,0.9463]
[1757088247837,2.1587,4276.7,4276.6,0.246]
[1757088248140,3.2078,4277.1,4276.3,1.5447]
[1757088248141,1.238,4276.4,4276.3,1.5447]
[1757088248344,2.1587,4276.4,4275.7,3.2078]
[1757088248540,0.5927,4275.6,4275.5,1.899]
[1757088249731,1.238,4275.6,4275.5,1.899]
[1757088249935,3.8005,4276.0,4275.9,0.5984]
[1757088250132,3.8005,4276.5,4276.4,1.2292]
[1757088250336,0.5927,4276.6,4276.5,1.3006]
[1757088250540,0.5927,4276.6,4276.5,1.899]
[1757088250742,3.2078,4277.0,4276.6,0.9463]
[1757088251248,3.2078,4277.0,4276.5,0.3543]
[1757088251441,1.1138,4276.9,4276.5,0.3543]
[1757088251642,1.1138,4276.9,4276.6,0.9463]
[1757088251947,1.1138,4276.9,4276.5,0.3543]
[1757088252139,1.1138,4276.9,4276.6,0.9463]
[1757088252333,2.0345,4276.9,4276.5,0.3543]
[1757088252544,2.0345,4276.9,4276.6,0.9463]
[1757088252747,2.0345,4276.9,4276.5,0.3543]
[1757088253043,1.1138,4276.9,4276.6,0.9463]
[1757088253348,0.9207,4276.8,4276.6,0.9463]
[1757088253545,0.9207,4276.7,4276.1,0.9463]
[1757088253752,3.2078,4276.5,4275.9,4.4001]
[1757088254049,4.1285,4276.5,4276.1,0.9463]
[1757088254349,4.1285,4276.5,4276.0,0.3543]
[1757088254645,3.2078,4276.5,4276.1,0.9463]
[1757088254847,3.2078,4276.5,4276.0,0.3543]
[1757088255148,3.2078,4276.5,4276.1,0.9463]
[1757088255649,3.2078,4276.5,4276.2,0.246]
[1757088256148,3.2078,4276.5,4276.3,0.9463]
[1757088256344,3.2078,4276.5,4276.2,0.246]
[1757088256648,3.2078,4276.5,4276.3,0.9463]
[1757088257244,1.1138,4276.9,4276.8,2.1755]
[1757088258043,1.53464,4276.9,4276.8,2.1755]
[1757088259045,0.8784,4276.8,4276.5,0.9617]
[1757088259253,1.1138,4276.9,4276.5,1.5613]
[1757088259254,1.1903,4276.6,4276.5,1.5613]
[1757088259549,1.1903,4276.6,4276.5,1.9161]
[1757088259749,1.1903,4276.6,4275.9,3.2078]
[1757088259750,1.1952,4276.5,4275.9,3.2078]
[1757088259954,0.5991,4276.0,4275.9,5.4064]
[1757088260145,0.5991,4276.2,4276.1,1.5613]
[1757088260346,0.5991,4276.2,4276.1,2.1986]
[1757088260649,0.5991,4276.2,4276.1,2.4446]
[1757088261241,3.2078,4276.8,4276.5,0.3548]
[1757088261447,4.3981,4276.8,4276.7,2.1986]
[1757088261648,4.3981,4276.8,4276.7,1.5613]
[1757088261848,4.3981,4276.8,4276.5,1.5625]
[1757088262045,2.0687,4276.6,4276.5,1.2077]
[1757088262239,3.2078,4276.8,4276.5,1.8377]
[1757088262443,1.1138,4276.9,4276.7,0.9617]
[1757088264054,1.1138,4276.9,4276.8,1.2077]
[1757088265045,1.1138,4276.9,4276.8,0.9617]
[1757088265251,1.1138,4276.9,4276.8,1.2077]
[1757088265451,1.9922,4276.9,4276.8,1.2077]
[1757088265854,1.53464,4276.9,4276.8,1.2077]
[1757088269761,1.53464,4276.9,4276.8,2.4446]
[1757088271160,1.53464,4276.9,4276.8,6.4446]
[1757088271466,1.53464,4276.9,4276.8,6.86545]
[1757088271764,1.53464,4276.9,4276.8,6.4446]
[1757088273063,2.13374,4276.9,4276.8,2.4436]
[1757088273768,1.53464,4276.9,4276.8,2.4436]
[1757088273966,1.53464,4276.9,4276.8,6.4436]
[1757088274159,1.53464,4276.9,4276.8,6.86444]
[1757088274358,1.1138,4276.9,4276.8,6.86444]
[1757088274567,0.4208,4277.3,4277.2,2.1986]
[1757088274768,0.4208,4277.3,4277.2,6.36041147]
[1757088274968,3.22688,4278.4,4277.2,6.36041147]
[1757088274969,0.4207,4278.3,4278.2,2.1986]
[1757088275170,0.42062,4279.1,4279.0,1.3165]
[1757088275361,0.42062,4279.1,4279.0,1.84971147]
[1757088275761,1.05152,4279.3,4279.0,1.84971147]
[1757088275762,3.2078,4279.5,4279.0,1.84971147]
[1757088276062,0.3119,4280.0,4279.2,0.9617]
[1757088276257,0.5569,4280.0,4279.3,0.53321147]
[1757088276459,0.5569,4280.0,4279.4,0.28821147]
[1757088276760,0.5569,4280.0,4279.5,0.28821147]
[1757088277068,4.0862,4279.7,4279.6,0.28821147]
[1757088277272,4.3312,4279.7,4278.7,0.9617]
[1757088277468,3.2078,4279.2,4278.7,0.9617]
[1757088277768,3.2078,4279.2,4278.8,1.2067]
[1757088278066,0.6515,4279.1,4278.8,1.2067]
[1757088278263,3.2078,4279.2,4278.8,0.245]
[1757088278458,0.6515,4279.1,4278.4,0.9617]
[1757088278655,0.6515,4278.6,4278.5,0.245]
[1757088279663,0.6515,4278.5,4277.8,3.2078]
[1757088279866,3.2078,4278.2,4277.8,0.245]
[1757088280260,3.2078,4278.2,4277.9,0.9617]
[1757088280464,3.2078,4278.2,4277.8,0.245]
[1757088280465,3.2078,4278.2,4278.1,0.9617]
[1757088280764,0.8965,4278.6,4278.0,1.3165]
[1757088281067,0.8965,4278.5,4278.1,0.9617]
[1757088281365,0.6515,4278.5,4278.1,0.9617]
[1757088281570,0.6515,4278.5,4278.0,0.3548]
[1757088281764,3.2078,4278.7,4278.1,0.9617]
[1757088281959,3.2078,4278.7,4278.3,0.9617]
[1757088282174,0.8965,4279.0,4278.3,0.9617]
[1757088282565,3.2078,4278.7,4278.2,1.2067]
[1757088282771,3.2078,4278.7,4278.5,0.3548]
[1757088283162,3.2078,4278.7,4278.6,1.2067]
[1757088283370,3.4528,4279.2,4278.6,1.2067]
[1757088283769,3.2078,4279.2,4278.6,0.245]
[1757088284165,3.2078,4279.2,4278.7,0.9617]
[1757088284668,0.6515,4279.1,4278.0,4.5243]
[1757088284969,0.6515,4279.1,4278.2,0.9617]
[1757088285177,3.2078,4279.2,4278.2,0.9617]
[1757088285570,0.6515,4279.1,4278.2,0.9617]
[1757088286268,0.6515,4278.6,4278.2,0.9617]
[1757088286466,0.6515,4278.6,4277.8,0.9617]
[1757088286670,0.6515,4278.6,4277.5,35.8356]
[1757088286671,0.6515,4278.6,4277.9,0.246]
[1757088286872,0.8975,4278.6,4277.9,0.246]
[1757088287465,0.6515,4278.5,4277.5,35.8356]
[1757088287666,3.2078,4277.6,4277.4,0.246]
[1757088287866,3.2078,4277.6,4277.0,4.5243]
[1757088287867,0.6515,4277.5,4277.0,3.2078]
[1757088288060,0.6515,4277.5,4276.5,0.3548]
[1757088288061,3.2078,4277.1,4276.6,0.9617]
[1757088288474,0.637,4277.0,4276.4,0.246]
[1757088288672,0.637,4276.9,4276.2,1.1944]
[1757088289777,3.2078,4276.6,4276.2,1.1944]
[1757088289971,3.2078,4276.6,4276.3,0.9484]
[1757088290172,3.2078,4276.6,4276.2,0.246]
[1757088290478,3.2078,4276.6,4276.5,1.3014]
[1757088291372,3.2078,4277.3,4277.1,0.9484]
[1757088291575,3.2078,4277.3,4277.0,0.353]
[1757088291768,3.2078,4277.3,4277.1,0.9484]
[1757088292572,3.2078,4277.3,4276.6,0.9484]
[1757088292776,0.637,4277.2,4276.6,0.9484]
[1757088293781,3.2078,4276.7,4276.6,0.9484]
[1757088294076,3.8448,4277.2,4276.6,0.9484]
[1757088294277,4.0908,4277.2,4276.6,0.9484]
[1757088294478,3.2078,4277.2,4276.6,0.9484]
[1757088295777,3.2078,4277.2,4277.0,0.353]
[1757088296079,3.2078,4277.2,4277.1,0.9484]
[1757088299075,3.2078,4277.7,4277.1,0.9484]
[1757088299275,3.2078,4277.7,4277.6,0.9484]
[1757088299476,3.2078,4277.7,4277.0,0.353]
[1757088299477,3.2078,4277.7,4277.1,0.9484]
[1757088300286,3.2078,4278.9,4277.6,0.9484]
[1757088300481,3.2078,4278.9,4277.8,0.9484]
[1757088300684,3.2078,4278.9,4277.5,0.353]
[1757088300685,0.637,4278.3,4277.5,0.353]
[1757088301087,0.637,4277.8,4277.5,0.353]
[1757088301286,0.637,4277.8,4277.0,3.5608]
[1757088301287,0.637,4277.8,4277.1,0.9484]
[1757088301482,0.637,4277.7,4276.7,0.246]
[1757088301781,0.637,4277.7,4276.8,0.9484]
[1757088302177,3.2078,4277.9,4276.8,0.9484]
[1757088302379,3.2078,4277.9,4277.5,0.353]
[1757088302574,3.2078,4277.9,4277.6,0.9484]
[1757088302786,3.2078,4277.9,4277.5,0.353]
[1757088303082,3.2078,4277.9,4277.6,0.9484]
[1757088303283,3.8448,4277.9,4277.5,0.353]
[1757088303481,3.8448,4277.9,4277.6,0.9484]
[1757088303787,0.637,4277.8,4277.6,0.9484]
[1757088303987,3.2078,4277.9,4277.5,0.353]
[1757088304179,3.2078,4277.9,4277.6,0.9484]
[1757088304381,3.2078,4278.4,4278.1,0.9484]
[1757088305591,3.2078,4278.9,4278.1,0.9484]
[1757088307293,3.2078,4278.9,4278.5,0.353]
[1757088307481,0.246,4279.3,4278.6,0.9484]
[1757088307882,3.2078,4279.4,4278.6,0.9484]
[1757088308290,3.2078,4279.4,4278.7,0.9484]
[1757088308792,3.8448,4279.4,4278.7,0.9484]
[1757088309992,3.2078,4279.8,4279.5,0.353]
[1757088310398,3.2078,4279.8,4279.6,0.9484]
[1757088310990,3.2078,4280.3,4279.6,0.9484]
[1757088311288,3.2078,4280.3,4280.0,0.353]
[1757088311895,3.2078,4280.3,4280.1,0.9484]
[1757088312690,0.246,4280.8,4280.1,0.9484]
[1757088312999,3.2078,4281.3,4280.2,0.9484]
[1757088313189,3.2078,4281.3,4280.1,3.2078]
[1757088313190,3.2078,4281.3,4281.0,0.353]
[1757088313494,3.2078,4281.3,4281.1,0.9484]
[1757088313691,3.4538,4282.0,4281.1,0.9484]
[1757088313891,3.2078,4282.0,4281.1,0.9484]
[1757088314099,3.2078,4282.0,4281.1,3.2078]
[1757088314297,3.2078,4282.0,4281.5,0.353]
[1757088314492,3.2078,4282.0,4281.6,0.9484]
[1757088314811,3.2078,4282.5,4282.1,0.9484]
[1757088314995,3.2078,4282.5,4282.0,0.353]
[1757088315201,3.2078,4282.5,4282.1,0.9484]
[1757088315402,3.2078,4282.5,4282.0,0.353]
[1757088315694,3.2078,4282.5,4281.1,1.1944]
[1757088315695,0.637,4282.3,4281.1,1.1944]
[1757088315904,3.2078,4281.2,4281.1,1.1944]
[1757088316594,3.2078,4281.2,4280.5,0.353]
[1757088316796,3.2078,4281.2,4280.7,0.9484]
[1757088316993,3.2078,4281.7,4280.7,0.9484]
[1757088317599,3.2078,4281.7,4281.6,0.9484]
[1757088318505,3.8448,4282.3,4281.6,0.9484]
[1757088318705,3.2078,4282.8,4281.6,0.9484]
[1757088319196,3.2078,4282.8,4281.6,0.879]
[1757088319399,3.812,4282.8,4281.6,0.879]
[1757088319600,3.812,4282.8,4281.7,0.246]
[1757088319794,3.812,4282.8,4281.8,0.879]
[1757088320197,3.2078,4282.8,4281.8,0.879]
[1757088320605,3.2078,4282.8,4282.6,0.879]
[1757088320799,3.2078,4283.6,4282.8,0.879]
[1757088321098,0.6042,4283.7,4283.1,4.0868]
[1757088321297,3.812,4284.3,4283.1,3.2078]
[1757088321500,3.812,4284.3,4283.2,0.879]
[1757088321698,3.812,4284.3,4283.1,3.2078]
[1757088321699,0.23344,4284.2,4283.1,3.2078]
[1757088321899,0.6042,4283.4,4282.9,0.879]
[1757088322195,0.6042,4283.4,4282.5,4.4531]
[1757088322601,0.6042,4283.4,4282.6,0.246]
[1757088322901,0.6042,4283.4,4282.4,0.246]
[1757088323101,0.6042,4282.9,4281.7,0.879]
[1757088323295,0.6042,4282.4,4281.7,0.879]
[1757088324096,0.23353001,4282.3,4281.5,3.2078]
[1757088324299,0.6265,4281.9,4281.0,3.5741]
[1757088324800,3.2078,4282.0,4281.0,3.5741]
[1757088324989,0.6265,4281.9,4281.0,3.5741]
[1757088325192,0.6265,4281.9,4281.1,0.879]
[1757088325390,0.23357,4281.9,4281.0,3.2078]
[1757088325603,0.6265,4281.8,4281.0,3.2078]
[1757088326000,3.2078,4282.0,4281.1,0.879]
[1757088326308,0.6265,4281.9,4281.1,0.879]
[1757088327105,3.2078,4282.0,4281.1,0.879]
[1757088328099,3.2078,4282.7,4281.6,0.879]
[1757088328402,3.2078,4283.2,4282.1,0.879]
[1757088328600,3.2078,4283.2,4283.0,0.3663]
[1757088328905,0.6265,4283.7,4283.1,0.879]
[1757088329813,3.2078,4283.8,4283.1,0.879]
[1757088330001,3.8343,4283.8,4283.1,0.879]
[1757088332504,0.6265,4283.2,4282.1,3.2078]
[1757088332710,0.6265,4282.7,4282.1,3.2078]
[1757088333002,0.6265,4282.7,4282.0,1.2453]
[1757088333507,0.6265,4282.5,4281.6,3.2078]
[1757088333806,0.6265,4282.0,4281.1,3.4528]
[1757088334008,0.8715,4282.0,4281.1,3.2078]
[1757088334905,0.245,4281.9,4281.2,0.879]
[1757088336105,0.6265,4282.0,4281.2,0.879]
[1757088336106,3.2078,4282.1,4281.2,0.879]
[1757088336409,0.61270536,4282.0,4281.2,0.879]
[1757088336611,3.2078,4282.1,4281.4,0.879]
[1757088336814,0.61271289,4282.0,4281.6,0.879]
[1757088337112,0.6133801,4281.9,4281.5,0.3663]
[1757088337303,3.2078,4282.1,4281.6,0.879]
[1757088337604,0.61338014,4282.0,4281.6,0.879]
[1757088337811,0.61338014,4281.9,4281.5,0.3663]
[1757088338008,3.2078,4282.1,4281.6,0.879]
[1757088338197,0.61381714,4282.0,4281.6,0.879]
[1757088338402,0.61381714,4281.9,4281.5,0.3663]
[1757088338607,3.2078,4282.4,4281.6,0.879]
[1757088338909,3.2078,4282.9,4281.7,3.2078]
[1757088339209,0.6265,4282.1,4281.3,0.879]
[1757088339411,0.61372127,4282.0,4281.3,0.879]
[1757088340802,0.61372127,4282.0,4281.6,0.879]
[1757088341007,0.61372127,4281.9,4281.6,0.879]
[1757088341207,0.61372127,4281.8,4281.6,0.879]
[1757088341408,0.61372127,4281.8,4281.5,0.3663]
[1757088341409,0.245,4282.9,4282.1,0.879]
[1757088341710,0.61508146,4282.8,4282.1,0.879]
[1757088341906,0.61508146,4282.7,4282.5,0.3663]
[1757088342207,0.61508146,4282.6,4282.5,1.2453]
[1757088343207,0.61508146,4282.6,4282.0,0.3663]
[1757088343406,0.61508146,4282.5,4282.1,0.879]
[1757088343603,0.61508146,4282.4,4282.0,0.3663]
[1757088343804,0.61508146,4282.3,4282.1,0.879]
[1757088344009,0.61508146,4282.2,4282.1,0.879]
[1757088345013,1.24158146,4282.2,4282.0,3.2078]
[1757088345314,0.61508146,4282.1,4281.5,0.3663]
[1757088345612,1.24158146,4282.0,4281.6,0.879]
[1757088345815,1.24158146,4281.9,4281.6,0.879]
[1757088346017,0.61508146,4281.8,4281.5,0.3663]
[1757088346223,0.61508146,4281.7,4281.6,0.879]
[1757088346410,0.61508146,4281.7,4280.9,3.2078]
[1757088346712,0.61508146,4281.7,4280.5,0.3663]
[1757088346713,0.6265,4281.5,4281.1,0.879]
[1757088346919,0.61508146,4281.4,4281.0,0.6113]
[1757088347109,0.61508146,4281.3,4281.0,0.6113]
[1757088347314,0.61508146,4281.2,4281.1,0.879]
[1757088348007,1.2457118,4282.1,4282.0,0.3663]
[1757088348008,3.2078,4282.1,4282.0,0.3663]
[1757088348214,3.81847337,4282.1,4281.5,1.5314]
[1757088348417,0.61067337,4282.0,4281.5,0.6113]
[1757088348713,0.61067337,4281.9,4281.6,0.9201]
[1757088348918,0.61067337,4281.8,4281.5,0.6113]
[1757088349122,0.61067337,4281.7,4281.6,0.9201]
[1757088350011,0.61067337,4281.7,4281.6,4.1279]
[1757088350212,0.245,4282.6,4281.6,3.2078]
[1757088350413,0.61050623,4282.5,4281.7,0.9201]
[1757088350613,0.61050623,4282.4,4281.7,0.9201]
[1757088350809,0.61050623,4282.3,4281.7,0.9201]
[1757088351119,0.61050623,4282.2,4282.1,0.9201]
[1757088351413,0.61050623,4282.5,4282.1,0.9201]
[1757088351620,0.61050623,4282.4,4282.0,0.3498]
[1757088351913,0.61050623,4282.3,4282.1,0.9201]
[1757088352110,1.2457118,4283.1,4282.6,0.9201]
[1757088352310,0.61139158,4283.0,4282.5,0.3498]
[1757088352510,0.61139158,4282.9,4282.5,0.3498]
[1757088352714,0.61139158,4282.8,4282.6,0.9201]
[1757088352925,0.61139158,4282.7,4282.6,0.9201]
[1757088353112,3.2078,4283.8,4283.5,0.3498]
[1757088353417,0.60708507,4283.7,4283.6,0.9201]
[1757088354318,0.245,4284.4,4283.6,0.9201]
[1757088354520,0.60681717,4284.3,4283.6,0.9201]
[1757088354821,0.60681717,4284.2,4283.6,0.9201]
[1757088355115,0.60681717,4284.1,4284.0,1.2699]
[1757088355311,0.5992,4284.5,4284.1,0.9201]
[1757088355518,1.20584128,4284.4,4284.1,0.9201]
[1757088355719,0.60664128,4284.3,4284.0,0.3498]
[1757088356217,0.8432,4284.6,4284.0,0.3498]
[1757088356423,0.5992,4284.1,4283.3,0.9201]
[1757088356615,0.60643019,4284.0,4283.3,0.9201]
[1757088356815,0.60643019,4283.9,4283.3,0.9201]
[1757088357011,3.2078,4284.2,4283.5,0.3498]
[1757088357214,0.60625829,4284.1,4284.0,0.3498]
[1757088357524,0.244,4284.6,4284.0,1.2699]
[1757088357724,0.60628981,4284.5,4284.1,0.9201]
[1757088358020,3.4518,4284.7,4284.0,0.3498]
[1757088358021,0.60628981,4284.4,4284.0,0.3498]
[1757088358321,3.4518,4284.7,4284.1,0.9201]
[1757088358616,0.60423224,4284.6,4284.1,0.9201]
[1757088358822,0.60423224,4284.5,4284.1,0.9201]
[1757088359022,0.60423224,4284.4,4284.0,0.3498]
[1757088359322,0.5992,4284.6,4284.0,0.3498]
[1757088359523,1.20326815,4284.5,4284.0,0.3498]
[1757088359831,3.4518,4284.7,4284.0,0.3498]
[1757088359832,0.60406825,4284.4,4284.0,0.3498]
[1757088360125,0.60406825,4284.4,4283.6,0.244]
[1757088360126,0.5992,4284.6,4283.6,0.9201]
[1757088360312,3.2078,4284.1,4283.1,0.9201]
[1757088360621,0.5992,4283.4,4282.8,3.2078]
[1757088361018,3.2078,4284.1,4283.1,0.9201]
[1757088361320,3.2078,4284.1,4284.0,1.2699]
[1757088361517,0.60394122,4284.1,4284.0,1.2699]
[1757088361724,3.4518,4284.6,4284.0,1.2699]
[1757088362019,0.245,4284.9,4284.1,0.9201]
[1757088362213,3.2078,4285.1,4284.1,0.9201]
[1757088362414,3.2078,4285.1,4284.0,0.76994]
[1757088362415,3.2078,4285.1,4285.0,1.2699]
[1757088362620,0.245,4285.8,4285.1,0.9201]
[1757088362920,3.2078,4285.9,4285.1,0.9201]
[1757088363315,0.5992,4285.8,4285.1,0.9201]
[1757088364114,3.2078,4285.9,4285.1,0.9201]
[1757088364930,3.807,4285.9,4285.1,0.9201]
[1757088365224,0.307,4286.5,4285.0,0.3498]
[1757088365225,3.2078,4285.4,4285.0,0.3498]
[1757088365623,3.2078,4285.4,4285.1,0.9201]
[1757088365924,3.2078,4285.4,4285.0,0.3498]
[1757088366621,3.2078,4285.4,4285.1,0.9201]
[1757088366924,3.2078,4285.4,4285.0,0.3498]
[1757088367626,3.2078,4285.4,4285.1,0.9201]
[1757088368029,3.2078,4286.0,4285.1,0.9201]
[1757088368322,4.051,4286.6,4285.6,0.9201]
[1757088368526,3.2078,4286.6,4285.6,0.9201]
[1757088368932,3.2078,4286.6,4286.5,1.2699]
[1757088369232,3.2078,4286.6,4286.0,0.3498]
[1757088369233,3.2078,4286.6,4286.1,0.9201]
[1757088369430,3.2078,4286.6,4286.0,0.3498]
[1757088369631,0.5992,4286.5,4286.0,0.3498]
[1757088369834,3.2078,4286.6,4286.1,0.9201]
[1757088370039,3.2078,4286.6,4286.0,0.3498]
[1757088370527,3.2078,4286.6,4286.1,0.9201]
[1757088370830,3.2078,4286.6,4286.0,1.2699]
[1757088371124,0.5992,4286.5,4286.0,0.9201]
[1757088371329,3.807,4286.6,4286.0,0.9201]
[1757088371527,3.807,4286.6,4286.0,1.2699]
[1757088371728,3.2078,4286.6,4285.5,0.5938]
[1757088371927,3.2078,4286.6,4285.6,0.9201]
[1757088371928,0.5992,4286.5,4285.6,0.9201]
[1757088372134,3.2078,4286.1,4285.5,0.3498]
[1757088372525,0.5992,4286.0,4285.4,0.9201]
[1757088372827,3.4518,4286.1,4286.0,0.3498]
[1757088373028,3.2078,4286.1,4286.0,1.2699]
[1757088373526,3.2078,4286.1,4285.5,0.3498]
[1757088373830,3.2078,4286.1,4285.5,1.2699]
[1757088374037,3.2078,4286.1,4286.0,1.2699]
[1757088374231,3.2078,4286.1,4286.0,0.9201]
[1757088374427,3.807,4286.1,4286.0,0.9201]
[1757088374628,3.807,4286.1,4285.5,1.2699]
[1757088374842,3.807,4286.1,4285.5,0.9201]
[1757088375031,3.2078,4285.6,4285.5,0.9201]
[1757088375230,0.5992,4285.4,4284.5,0.3498]
[1757088375530,3.2078,4285.4,4285.0,0.3498]
[1757088375831,0.244,4285.7,4285.5,0.3498]
[1757088376027,3.2078,4286.2,4285.6,0.9201]
[1757088376222,0.244,4286.1,4285.5,0.3498]
[1757088376422,3.2078,4286.2,4285.5,0.3498]
[1757088376626,3.2078,4286.2,4286.0,0.3498]
[1757088376932,3.2078,4286.2,4286.1,0.9201]
[1757088377125,3.2078,4286.2,4285.6,0.9201]
[1757088377433,0.5992,4286.0,4285.6,0.9201]
[1757088377932,0.5992,4286.0,4285.2,1.0911]
[1757088378534,0.244,4286.1,4285.2,1.0911]
[1757088378725,0.567,4286.0,4285.2,1.0911]
[1757088380133,0.244,4286.1,4286.0,1.284]
[1757088380429,3.2078,4286.2,4286.1,0.917]
[1757088380637,3.4518,4286.2,4285.6,0.917]
[1757088381334,0.567,4286.1,4285.6,0.917]
[1757088381524,0.567,4285.6,4285.0,0.3498]
[1757088381728,3.2078,4285.2,4285.0,0.367]
[1757088382037,3.2078,4285.2,4285.1,0.917]
[1757088382529,3.7748,4285.2,4284.6,0.917]
[1757088382737,3.2078,4284.7,4284.6,0.917]
[1757088383533,3.2078,4285.3,4284.6,0.917]
[1757088383837,0.84841009,4285.2,4284.6,0.917]
[1757088384038,0.244,4285.2,4284.6,0.917]
[1757088385342,0.6049375,4285.1,4284.6,0.917]
[1757088385641,0.244,4285.2,4284.6,0.917]
[1757088385832,0.60493738,4285.1,4284.6,0.917]
[1757088386032,0.244,4285.2,4284.6,0.917]
[1757088386338,0.60502863,4285.1,4284.6,0.917]
[1757088386528,0.244,4285.2,4284.6,0.917]
[1757088386732,0.60502835,4285.1,4284.6,0.917]
[1757088386928,0.244,4285.2,4284.6,0.917]
[1757088387128,3.7684,4284.8,4284.6,0.917]
[1757088387329,3.2078,4284.8,4284.0,0.611]
[1757088387530,3.2078,4284.8,4284.6,0.917]
[1757088388333,0.5606,4285.7,4285.1,0.917]
[1757088388334,3.2078,4285.6,4285.1,0.917]
[1757088388536,0.84894193,4285.5,4285.1,0.917]
[1757088388729,0.60494193,4285.4,4285.0,0.367]
[1757088389040,3.2078,4285.6,4285.0,0.367]
[1757088389240,1.40976701,4285.5,4285.1,0.917]
[1757088389539,1.16575392,4285.4,4284.6,0.917]
[1757088389739,0.60515392,4285.3,4285.0,0.367]
[1757088389941,0.244,4285.4,4285.1,0.917]
[1757088390139,0.60513699,4285.3,4285.1,0.917]
[1757088390338,0.244,4285.4,4285.0,0.367]
[1757088390537,0.60549332,4285.3,4285.1,0.917]
[1757088390850,0.60546786,4285.2,4284.6,0.917]
[1757088391035,0.5606,4284.8,4284.6,0.917]
[1757088391241,1.16642997,4284.7,4284.1,0.917]
[1757088391536,0.244,4284.8,4284.1,0.917]
[1757088391734,0.60583113,4284.7,4284.1,0.917]
[1757088391937,3.2078,4284.9,4284.1,0.917]
[1757088392137,0.84983135,4284.8,4284.1,0.917]
[1757088392337,0.60583135,4284.7,4284.1,0.917]
[1757088393537,3.2078,4284.2,4284.1,0.917]
[1757088393839,3.2078,4284.2,4283.5,0.611]
[1757088393840,0.5606,4284.1,4283.5,1.284]
[1757088394150,0.84966254,4284.0,4283.6,0.917]
[1757088394440,0.60566254,4283.9,4283.5,0.367]
[1757088394639,0.244,4284.0,4283.2,4.1248]
[1757088394640,0.5606,4283.7,4283.2,4.1248]
[1757088394842,3.2078,4283.4,4282.7,0.917]
[1757088395035,0.5606,4283.3,4282.7,0.917]
[1757088395234,3.2078,4282.9,4282.2,0.917]
[1757088395435,0.244,4282.8,4282.2,0.917]
[1757088396039,0.60388921,4282.7,4282.2,0.917]
[1757088396240,0.244,4282.8,4282.2,0.917]
[1757088396441,0.5606,4282.7,4282.0,1.284]
[1757088397731,3.2078,4282.4,4282.0,0.367]
[1757088397932,0.8046,4282.3,4282.1,0.917]
[1757088398144,0.5606,4282.2,4281.6,0.917]
[1757088398447,0.244,4282.3,4281.6,0.917]
[1757088399950,0.8046,4282.3,4281.6,0.917]
[1757088400248,0.244,4282.3,4281.6,0.917]
[1757088401138,3.2078,4281.8,4281.0,0.367]
[1757088401447,0.244,4281.7,4281.1,0.917]
[1757088401639,0.244,4281.7,4281.6,0.917]
[1757088402340,3.2078,4281.8,4281.5,0.367]
[1757088402541,3.4518,4281.8,4281.6,0.917]
[1757088402944,0.244,4282.1,4281.6,0.917]
[1757088403145,0.244,4282.1,4282.0,1.284]
[1757088403443,3.2078,4282.3,4282.1,0.917]
[1757088403637,3.4518,4282.3,4282.1,0.917]
[1757088404140,0.244,4282.2,4282.1,0.917]
[1757088404859,0.244,4282.2,4282.0,0.367]
[1757088405046,0.244,4282.1,4282.0,0.367]
[1757088405245,0.244,4282.1,4282.0,1.284]
[1757088406044,0.244,4282.2,4282.1,0.917]
[1757088406746,3.2078,4283.8,4283.5,0.367]
[1757088406949,3.4518,4283.8,4283.5,0.367]
[1757088407245,0.244,4283.7,4283.6,0.917]
[1757088407448,3.2078,4283.8,4283.6,0.917]
[1757088408148,3.2078,4284.5,4284.0,0.3569]
[1757088408352,3.2078,4284.5,4284.1,0.8287]